[Event "49th Rilton Cup 2019-20"]
[Site "Stockholm"]
[Date "2019.12.31"]
[Round "5.15"]
[White "Tsyhanchuk, Stanislav"]
[Black "Keinanen, Toivo"]
[Result "0-1"]
[ECO "C11"]
[WhiteElo "2357"]
[BlackElo "2447"]
[Annotator "ChessBase"]
[PlyCount "128"]
[EventDate "2019.12.27"]
[EventType "swiss"]
[EventCountry "SWE"]
[SourceTitle "playchess.com"]
[Source "ChessBase"]
[SourceQuality "1"]
[TimeControl "40/5400+30:1800+30"]

1. e4 {[%emt 0:00:00]} e6 {[%emt 0:04:07]} 2. d4 {[%emt 0:00:00]} d5 {[%emt 0:00:05]} 3. Nc3 {[%emt 0:00:00]} Nf6 {[%emt 0:00:02]} 4. Bg5 {[%emt 0:00:04]} dxe4 {[%emt 0:00:04]} 5. Nxe4 {[%emt 0:00:14]} Nbd7 {[%emt 0:00:02]} 6. g3 {[%emt 0:05:21]} Be7 {[%emt 0:05:17]} 7. Nxf6+ {[%emt 0:04:46]} Bxf6 {[%emt 0:04:24]} 8. Bxf6 {[%emt 0:02:10]} Qxf6 {[%emt 0:01:32]} 9. Bg2 {[%emt 0:02:48]} O-O {[%emt 0:01:36]} 10. Nf3 {[%emt 0:13:37]} e5 {[%emt 0:01:39]} 11. O-O {[%emt 0:03:07]} e4 {[%emt 0:03:09]} 12. Ne1 {[%emt 0:08:33]} Qg6 {[%emt 0:09:31]} 13. Qe2 {[%emt 0:14:25]} Nf6 {[%emt 0:06:59]} 14. f3 {[%emt 0:06:41]} Qh5 {[%emt 0:03:22]} 15. Rf2 {[%emt 0:16:20]} Qh6 {[%emt 0:09:13]} 16. Qc4 {[%emt 0:05:39]} c6 {[%emt 0:20:50]} 17. Re2 {[%emt 0:00:44]} Be6 {[%emt 0:01:20]} 18. Qb4 {[%emt 0:01:16]} Qh5 {[%emt 0:02:03]} 19. Qd2 {[%emt 0:04:13]} c5 {[%emt 0:02:31]} 20. g4 {[%emt 0:02:39]} Qg6 {[%emt 0:09:40]} 21. g5 {[%emt 0:00:14]} e3 {[%emt 0:00:34]} 22. Qxe3 {[%emt 0:00:51]} cxd4 {[%emt 0:00:22]} 23. Qe5 {[%emt 0:03:54]} Nd7 {[%emt 0:03:58]} 24. Qxd4 {[%emt 0:00:11]} Qxg5 {[%emt 0:00:20]} 25. Rxe6 fxe6 {[%emt 0:00:00]} 26. Qxd7 {[%emt 0:02:08]} Qe3+ {[%emt 0:00:38]} 27. Kh1 {[%emt 0:00:15]} Rad8 {[%emt 0:00:01]} 28. Qxb7 {[%emt 0:02:12]} Rd2 {[%emt 0:00:04]} 29. Nd3 {[%emt 0:00:35]} Rxc2 {[%emt 0:00:55]} 30. Qe4 {[%emt 0:00:17]} Qxe4 {[%emt 0:02:07]} 31. fxe4 {[%emt 0:00:02]} Rd2 {[%emt 0:00:59]} 32. Nc5 {[%emt 0:01:21]} Rff2 {[%emt 0:01:02]} 33. Bf1 {[%emt 0:00:32]} Rxb2 {[%emt 0:00:05]} 34. Bc4 {[%emt 0:01:11]} Rxh2+ {[%emt 0:01:36]} 35. Kg1 {[%emt 0:00:01]} Rbg2+ {[%emt 0:03:33]} 36. Kf1 {[%emt 0:00:01]} Rc2 {[%emt 0:00:22]} 37. Bxe6+ {[%emt 0:00:20]} Kf8 {[%emt 0:00:30]} 38. Kg1 {[%emt 0:00:23]} Rhg2+ {[%emt 0:02:00]} 39. Kh1 {[%emt 0:00:36]} Rh2+ {[%emt 0:00:03]} 40. Kg1 {[%emt 0:00:02]} Rh6 {[%emt 0:02:14]} 41. Rf1+ {[%emt 0:12:58]} Ke7 {[%emt 0:07:27]} 42. Rf5 {[%emt 0:05:01]} Rg6+ {[%emt 0:03:04]} 43. Kf1 {[%emt 0:00:32]} Rf6 {[%emt 0:14:31]} 44. Rxf6 {[%emt 0:01:42]} Kxf6 {[%emt 0:00:33]} 45. Nb3 {[%emt 0:00:38]} Rxa2 {[%emt 0:00:05]} 46. Bg8 {[%emt 0:01:48]} h5 {[%emt 0:00:20]} 47. Nc5 {[%emt 0:00:44]} Ra5 {[%emt 0:02:51]} 48. Nd3 {[%emt 0:00:38]} g5 {[%emt 0:00:07]} 49. Bd5 {[%emt 0:01:12]} Ra3 {[%emt 0:02:14]} 50. Ke2 {[%emt 0:03:08]} h4 {[%emt 0:01:10]} 51. e5+ {[%emt 0:00:44]} Ke7 {[%emt 0:00:08]} 52. Nb4 {[%emt 0:00:56]} Rc3 {[%emt 0:01:48]} 53. Kd2 {[%emt 0:04:54]} Rc5 {[%emt 0:00:35]} 54. Kd3 {[%emt 0:01:03]} Rxd5+ {[%emt 0:02:34]} 55. Nxd5+ Ke6 56. Ne3 {[%emt 0:03:46]} Kxe5 {[%emt 0:00:06]} 57. Ke2 {[%emt 0:00:19]} Kd4 {[%emt 0:00:36]} 58. Kd2 {[%emt 0:00:41]} a5 {[%emt 0:00:11]} 59. Nc2+ {[%emt 0:00:17]} Ke4 {[%emt 0:00:06]} 60. Ke2 {[%emt 0:00:09]} a4 {[%emt 0:00:22]} 61. Kf2 {[%emt 0:00:40]} Kd3 {[%emt 0:00:39]} 62. Nb4+ {[%emt 0:00:07]} Kc4 {[%emt 0:00:23]} 63. Nc2 {[%emt 0:00:05]} Kb3 {[%emt 0:00:38]} 64. Nd4+ {[%emt 0:00:06]} Kb2 {[%emt 0:00:19]} 0-1

[Event "49th Rilton Cup 2019-20"]
[Site "Stockholm"]
[Date "2019.12.31"]
[Round "5.16"]
[White "Sidhant, Mohapatra"]
[Black "Piesik, Piotr"]
[Result "1/2-1/2"]
[ECO "A05"]
[WhiteElo "2338"]
[BlackElo "2417"]
[Annotator "ChessBase"]
[PlyCount "29"]
[EventDate "2019.12.27"]
[EventType "swiss"]
[EventCountry "SWE"]
[SourceTitle "playchess.com"]
[Source "ChessBase"]
[SourceQuality "1"]
[TimeControl "40/5400+30:1800+30"]

1. Nf3 {[%emt 0:00:00]} Nf6 {[%emt 0:01:45]} 2. d4 {[%emt 0:00:02]} e6 {[%emt 0:02:17]} 3. Bf4 {[%emt 0:00:45]} b6 {[%emt 0:01:23]} 4. e3 {[%emt 0:00:21]} Bb7 {[%emt 0:00:08]} 5. Bd3 {[%emt 0:00:25]} d6 {[%emt 0:04:19]} 6. h3 {[%emt 0:00:22]} Nbd7 {[%emt 0:00:36]} 7. O-O {[%emt 0:00:42]} Qe7 {[%emt 0:02:48]} 8. Bh2 {[%emt 0:02:16]} g6 {[%emt 0:06:34]} 9. a4 {[%emt 0:06:23]} a5 {[%emt 0:07:35]} 10. Na3 {[%emt 0:01:01]} Bg7 {[%emt 0:00:43]} 11. Nb5 {[%emt 0:12:07]} Rc8 {[%emt 0:00:54]} 12. Na7 {[%emt 0:00:34]} Ra8 {[%emt 0:00:54]} 13. Nb5 {[%emt 0:00:09]} Rc8 {[%emt 0:06:07]} 14. Na7 {[%emt 0:13:30]} Ra8 {[%emt 0:00:32]} 15. Nb5 {[%emt 0:00:14]} 1/2-1/2

[Event "49th Rilton Cup 2019-20"]
[Site "Stockholm"]
[Date "2019.12.31"]
[Round "5.17"]
[White "Chernyak, Viktoria"]
[Black "Leenhouts, Koen"]
[Result "1/2-1/2"]
[ECO "A49"]
[WhiteElo "2284"]
[BlackElo "2415"]
[Annotator "ChessBase"]
[PlyCount "89"]
[EventDate "2019.12.27"]
[EventType "swiss"]
[EventCountry "SWE"]
[SourceTitle "playchess.com"]
[Source "ChessBase"]
[SourceQuality "1"]
[TimeControl "40/5400+30:1800+30"]

1. d4 {[%emt 0:00:00]} Nf6 {[%emt 0:00:00]} 2. Nf3 {[%emt 0:00:00]} g6 {[%emt 0:00:00]} 3. g3 {[%emt 0:00:00]} Bg7 {[%emt 0:00:27]} 4. Bg2 {[%emt 0:00:00]} O-O {[%emt 0:00:31]} 5. O-O {[%emt 0:00:03]} d5 {[%emt 0:00:18]} 6. c4 {[%emt 0:00:50]} dxc4 {[%emt 0:01:42]} 7. Na3 {[%emt 0:02:05]} c3 {[%emt 0:00:10]} 8. bxc3 {[%emt 0:00:03]} c5 {[%emt 0:00:08]} 9. Nc4 {[%emt 0:03:10]} Nc6 {[%emt 0:03:02]} 10. Ba3 {[%emt 0:04:45]} Nd5 {[%emt 0:08:23]} 11. Rc1 {[%emt 0:04:33]} cxd4 {[%emt 0:14:50]} 12. cxd4 {[%emt 0:00:19]} Nb6 {[%emt 0:00:59]} 13. e3 {[%emt 0:05:58]} Nxc4 {[%emt 0:01:49]} 14. Rxc4 {[%emt 0:02:26]} Be6 {[%emt 0:00:11]} 15. Rc2 {[%emt 0:00:16]} Bf5 {[%emt 0:06:44]} 16. Rc3 {[%emt 0:09:12]} Be4 {[%emt 0:01:58]} 17. Qe2 {[%emt 0:00:50]} Qa5 {[%emt 0:04:18]} 18. Rfc1 {[%emt 0:01:02]} Rfd8 {[%emt 0:02:07]} 19. Rb3 {[%emt 0:10:25]} Rac8 {[%emt 0:04:43]} 20. Rc5 {[%emt 0:07:11]} Qa4 {[%emt 0:00:36]} 21. Ng5 {[%emt 0:01:09]} Bxg2 {[%emt 0:02:52]} 22. Kxg2 {[%emt 0:00:29]} b6 {[%emt 0:10:24]} 23. Rc1 {[%emt 0:02:11]} h6 {[%emt 0:10:21]} 24. Nf3 {[%emt 0:00:23]} e5 {[%emt 0:04:18]} 25. dxe5 {[%emt 0:17:22]} Nxe5 {[%emt 0:00:17]} 26. Nxe5 {[%emt 0:00:26]} Bxe5 {[%emt 0:00:23]} 27. e4 {[%emt 0:00:13]} h5 {[%emt 0:02:32]} 28. Rxc8 {[%emt 0:05:59]} Rxc8 {[%emt 0:00:02]} 29. Bb4 {[%emt 0:00:05]} a5 {[%emt 0:04:33]} 30. Be7 {[%emt 0:02:20]} Qc6 {[%emt 0:02:35]} 31. Rb5 {[%emt 0:01:26]} Bg7 {[%emt 0:01:26]} 32. Bg5 {[%emt 0:03:32]} Re8 {[%emt 0:02:27]} 33. f3 {[%emt 0:00:18]} Bd4 {[%emt 0:02:36]} 34. Rb3 {[%emt 0:10:36]} Re5 {[%emt 0:03:29]} 35. Qd2 {[%emt 0:01:24]} Rxg5 {[%emt 0:01:33]} 36. Qxd4 {[%emt 0:02:16]} Rc5 {[%emt 0:02:08]} 37. Qd8+ {[%emt 0:00:53]} Kh7 {[%emt 0:00:16]} 38. Rxb6 {[%emt 0:00:27]} Rc2+ {[%emt 0:00:02]} 39. Kh3 {[%emt 0:00:04]} Qc4 {[%emt 0:00:28]} 40. Rb8 {[%emt 0:01:33]} Qe6+ {[%emt 0:03:41]} 41. g4 {[%emt 0:30:06]} Qe5 {[%emt 0:06:57]} 42. Qg8+ {[%emt 0:00:00]} Kh6 {[%emt 0:00:48]} 43. Qh8+ {[%emt 0:00:00]} Qxh8 {[%emt 0:00:03]} 44. Rxh8+ {[%emt 0:00:00]} Kg7 {[%emt 0:00:13]} 45. Ra8 {[%emt 0:00:00]} 1/2-1/2

[Event "49th Rilton Cup 2019-20"]
[Site "Stockholm"]
[Date "2019.12.31"]
[Round "5.19"]
[White "Eggleston, David J"]
[Black "Abdrlauf, Elham"]
[Result "0-1"]
[ECO "C11"]
[WhiteElo "2404"]
[BlackElo "2328"]
[Annotator "ChessBase"]
[PlyCount "108"]
[EventDate "2019.12.27"]
[EventType "swiss"]
[EventCountry "SWE"]
[SourceTitle "playchess.com"]
[Source "ChessBase"]
[SourceQuality "1"]
[TimeControl "40/5400+30:1800+30"]

1. e4 {[%emt 0:00:00]} e6 {[%emt 0:00:00]} 2. d4 {[%emt 0:00:27]} d5 {[%emt 0:00:00]} 3. Nc3 {[%emt 0:00:14]} Nf6 {[%emt 0:00:00]} 4. e5 {[%emt 0:02:23]} Nfd7 {[%emt 0:00:34]} 5. f4 {[%emt 0:00:12]} c5 {[%emt 0:00:05]} 6. Nf3 {[%emt 0:00:06]} Nc6 {[%emt 0:00:05]} 7. Be3 {[%emt 0:00:05]} b6 {[%emt 0:00:26]} 8. Qd2 {[%emt 0:03:55]} Be7 {[%emt 0:00:19]} 9. Bb5 {[%emt 0:01:25]} Bb7 {[%emt 0:00:29]} 10. O-O {[%emt 0:01:02]} Qc7 11. f5 {[%emt 0:16:02]} O-O-O {[%emt 0:24:13]} 12. fxe6 {[%emt 0:04:30]} fxe6 {[%emt 0:01:35]} 13. Bxc6 {[%emt 0:04:26]} Qxc6 {[%emt 0:00:10]} 14. Bg5 {[%emt 0:00:59]} Rde8 {[%emt 0:03:57]} 15. Bxe7 {[%emt 0:03:20]} Rxe7 {[%emt 0:00:02]} 16. a3 {[%emt 0:04:36]} Kb8 {[%emt 0:06:55]} 17. b4 {[%emt 0:10:32]} cxb4 {[%emt 0:01:43]} 18. axb4 {[%emt 0:00:11]} Rc8 {[%emt 0:00:03]} 19. Ra3 {[%emt 0:01:10]} Rf7 {[%emt 0:02:23]} 20. b5 {[%emt 0:05:06]} Qc4 {[%emt 0:01:07]} 21. Rfa1 {[%emt 0:01:00]} Nf8 {[%emt 0:03:22]} 22. Rb3 {[%emt 0:04:18]} h6 {[%emt 0:06:02]} 23. Ra4 {[%emt 0:00:31]} Qc7 {[%emt 0:00:01]} 24. Rba3 {[%emt 0:02:41]} Ba8 {[%emt 0:00:35]} 25. Ne1 {[%emt 0:06:30]} Ng6 {[%emt 0:01:52]} 26. Nd3 {[%emt 0:00:07]} Rcf8 {[%emt 0:00:06]} 27. h3 {[%emt 0:00:27]} Qd8 {[%emt 0:00:28]} 28. Ne2 {[%emt 0:03:30]} Qh4 {[%emt 0:02:37]} 29. Kh2 {[%emt 0:03:21]} Qe7 {[%emt 0:08:13]} 30. Ng3 {[%emt 0:09:36]} Nh4 {[%emt 0:05:21]} 31. c3 {[%emt 0:01:03]} Rd8 {[%emt 0:06:40]} 32. Qa2 {[%emt 0:01:16]} Rd7 {[%emt 0:00:37]} 33. Ra6 {[%emt 0:01:05]} Qd8 {[%emt 0:01:34]} 34. R3a4 {[%emt 0:01:01]} Qc7 {[%emt 0:00:42]} 35. Nb4 {[%emt 0:02:33]} Kc8 {[%emt 0:03:04]} 36. Qb2 {[%emt 0:02:05]} Kd8 {[%emt 0:01:15]} 37. Qc2 {[%emt 0:01:37]} Ke8 {[%emt 0:01:02]} 38. Qh7 {[%emt 0:01:14]} Qxc3 {[%emt 0:03:41]} 39. Qg8+ {[%emt 0:03:47]} Ke7 {[%emt 0:00:03]} 40. Qxa8 {[%emt 0:01:04]} Nf3+ {[%emt 0:00:38]} 41. gxf3 {[%emt 0:30:14]} Qd2+ {[%emt 0:30:12]} 42. Kh1 {[%emt 0:00:00]} Rxf3 {[%emt 0:00:00]} 43. Ra1 {[%emt 0:00:00]} Rxg3 {[%emt 0:00:00]} 44. Nc6+ {[%emt 0:00:00]} Kf7 {[%emt 0:00:00]} 45. Rf1+ {[%emt 0:00:00]} Kg6 {[%emt 0:00:00]} 46. Rg1 {[%emt 0:00:00]} Rxg1+ {[%emt 0:00:00]} 47. Kxg1 {[%emt 0:00:00]} Rf7 {[%emt 0:00:00]} 48. Qe8 {[%emt 0:00:00]} Qf2+ {[%emt 0:00:00]} 49. Kh1 {[%emt 0:00:00]} Kh7 {[%emt 0:00:00]} 50. Ra2 {[%emt 0:00:00]} Qe1+ {[%emt 0:00:00]} 51. Kg2 {[%emt 0:03:12]} Rf1 {[%emt 0:00:00]} 52. Qxe6 {[%emt 0:01:39]} Rg1+ {[%emt 0:00:00]} 53. Kf3 {[%emt 0:00:05]} Rg3+ {[%emt 0:00:00]} 54. Kf4 {[%emt 0:00:04]} Qe3+ {[%emt 0:00:00]} 0-1

[Event "49th Rilton Cup 2019-20"]
[Site "Stockholm"]
[Date "2019.12.31"]
[Round "5.20"]
[White "Chan, Kim Yew"]
[Black "Lindberg, Bengt"]
[Result "1-0"]
[ECO "A05"]
[WhiteElo "2245"]
[BlackElo "2401"]
[Annotator "ChessBase"]
[PlyCount "69"]
[EventDate "2019.12.27"]
[EventType "swiss"]
[EventCountry "SWE"]
[SourceTitle "playchess.com"]
[Source "ChessBase"]
[SourceQuality "1"]
[TimeControl "40/5400+30:1800+30"]

1. Nf3 {[%emt 0:00:00]} Nf6 {[%emt 0:00:00]} 2. g3 {[%emt 0:00:00]} d5 {[%emt 0:00:59]} 3. Bg2 {[%emt 0:00:00]} e6 {[%emt 0:00:13]} 4. O-O {[%emt 0:00:00]} Be7 {[%emt 0:00:14]} 5. c4 {[%emt 0:00:00]} O-O {[%emt 0:00:31]} 6. d4 {[%emt 0:00:00]} dxc4 {[%emt 0:00:20]} 7. Ne5 {[%emt 0:00:24]} Nc6 {[%emt 0:00:18]} 8. Bxc6 {[%emt 0:00:16]} bxc6 {[%emt 0:00:08]} 9. Nxc6 {[%emt 0:00:02]} Qe8 {[%emt 0:00:18]} 10. Nxe7+ {[%emt 0:00:03]} Qxe7 {[%emt 0:00:09]} 11. Na3 {[%emt 0:00:02]} e5 {[%emt 0:08:11]} 12. dxe5 {[%emt 0:01:04]} Qxe5 {[%emt 0:00:10]} 13. Nxc4 {[%emt 0:01:09]} Qh5 {[%emt 0:12:04]} 14. e4 {[%emt 0:00:56]} Ng4 {[%emt 0:29:36]} 15. h4 {[%emt 0:00:27]} Be6 {[%emt 0:00:19]} 16. Ne3 {[%emt 0:09:46]} Qg6 {[%emt 0:00:10]} 17. Nxg4 {[%emt 0:18:40]} Bxg4 {[%emt 0:00:23]} 18. Qd3 {[%emt 0:01:17]} Rad8 {[%emt 0:05:31]} 19. Qe3 {[%emt 0:05:00]} Rfe8 {[%emt 0:06:00]} 20. Re1 {[%emt 0:03:11]} Qa6 {[%emt 0:15:02]} 21. Bd2 {[%emt 0:05:57]} h5 {[%emt 0:00:23]} 22. Bc3 {[%emt 0:03:25]} f6 {[%emt 0:00:09]} 23. Qc5 {[%emt 0:04:01]} Qb7 {[%emt 0:00:46]} 24. Qc4+ {[%emt 0:04:43]} Kh8 {[%emt 0:05:44]} 25. Re3 {[%emt 0:05:02]} Rd7 {[%emt 0:05:06]} 26. Rae1 {[%emt 0:01:09]} Kh7 {[%emt 0:03:15]} 27. e5 {[%emt 0:14:53]} fxe5 {[%emt 0:00:06]} 28. Bxe5 {[%emt 0:00:48]} Bh3 {[%emt 0:04:46]} 29. Qc2+ {[%emt 0:01:07]} Kg8 {[%emt 0:00:20]} 30. f3 {[%emt 0:01:52]} Re6 {[%emt 0:01:52]} 31. Kh2 {[%emt 0:05:42]} Rxe5 {[%emt 0:01:41]} 32. Rxe5 {[%emt 0:00:36]} Qxf3 {[%emt 0:00:20]} 33. Kxh3 {[%emt 0:09:08]} Rd3 {[%emt 0:00:05]} 34. Qg2 {[%emt 0:01:02]} Qg4+ {[%emt 0:00:21]} 35. Kh2 {[%emt 0:00:06]} 1-0

[Event "49th Rilton Cup 2019-20"]
[Site "Stockholm"]
[Date "2019.12.31"]
[Round "5.21"]
[White "Spyropoulos, Nikolaos"]
[Black "Valkama, Eero"]
[Result "1/2-1/2"]
[ECO "C77"]
[WhiteElo "2401"]
[BlackElo "2249"]
[Annotator "ChessBase"]
[PlyCount "81"]
[EventDate "2019.12.27"]
[EventType "swiss"]
[EventCountry "SWE"]
[SourceTitle "playchess.com"]
[Source "ChessBase"]
[SourceQuality "1"]
[TimeControl "40/5400+30:1800+30"]

1. e4 {[%emt 0:00:00]} e5 {[%emt 0:00:00]} 2. Nf3 {[%emt 0:00:00]} Nc6 {[%emt 0:00:00]} 3. Bb5 {[%emt 0:00:00]} a6 {[%emt 0:00:00]} 4. Ba4 {[%emt 0:00:00]} Nf6 {[%emt 0:00:00]} 5. d3 {[%emt 0:00:00]} d6 {[%emt 0:01:46]} 6. c4 {[%emt 0:01:04]} Be7 {[%emt 0:02:58]} 7. Nc3 {[%emt 0:06:23]} O-O {[%emt 0:01:14]} 8. h3 {[%emt 0:04:09]} Nd4 {[%emt 0:09:12]} 9. Nxd4 {[%emt 0:02:18]} exd4 {[%emt 0:00:02]} 10. Ne2 {[%emt 0:00:10]} c5 {[%emt 0:00:03]} 11. O-O {[%emt 0:01:38]} Rb8 {[%emt 0:02:26]} 12. Nf4 {[%emt 0:14:35]} Nd7 {[%emt 0:10:45]} 13. Bxd7 {[%emt 0:13:58]} Bxd7 {[%emt 0:00:17]} 14. Nd5 {[%emt 0:01:18]} Be6 {[%emt 0:08:30]} 15. Qe2 {[%emt 0:10:49]} Re8 {[%emt 0:04:34]} 16. Re1 {[%emt 0:08:56]} b5 {[%emt 0:02:45]} 17. b3 {[%emt 0:01:06]} Rb7 {[%emt 0:04:43]} 18. Qf3 {[%emt 0:03:06]} bxc4 19. bxc4 {[%emt 0:00:42]} Bxd5 {[%emt 0:20:01]} 20. exd5 {[%emt 0:01:47]} Bf8 21. Rxe8 {[%emt 0:06:45]} Qxe8 {[%emt 0:01:56]} 22. Qd1 {[%emt 0:11:40]} Qb8 {[%emt 0:07:02]} 23. Bf4 {[%emt 0:07:12]} Rb2 24. Qa4 Rb1+ {[%emt 0:06:39]} 25. Rxb1 {[%emt 0:00:34]} Qxb1+ {[%emt 0:00:05]} 26. Kh2 {[%emt 0:00:02]} Qxd3 {[%emt 0:00:44]} 27. Qxa6 {[%emt 0:03:57]} Qg6 {[%emt 0:03:48]} 28. Qa3 {[%emt 0:00:44]} Qf5 {[%emt 0:05:28]} 29. Qg3 Qd7 30. Qb3 {[%emt 0:01:06]} Qf5 {[%emt 0:02:01]} 31. Bg3 {[%emt 0:00:57]} d3 {[%emt 0:03:24]} 32. a4 {[%emt 0:00:04]} d2 {[%emt 0:00:36]} 33. a5 {[%emt 0:00:25]} Qf6 {[%emt 0:01:18]} 34. a6 {[%emt 0:00:57]} Qa1 {[%emt 0:00:11]} 35. a7 {[%emt 0:00:03]} Qxa7 {[%emt 0:00:11]} 36. Bf4 {[%emt 0:00:08]} Qa5 {[%emt 0:04:20]} 37. Qc2 {[%emt 0:00:00]} d1=R {[%emt 0:00:19]} 38. Qxd1 {[%emt 0:00:34]} Qa2 {[%emt 0:00:35]} 39. Qf1 {[%emt 0:00:24]} Qc2 {[%emt 0:00:46]} 40. Bg3 h5 41. Qd1 1/2-1/2

[Event "49th Rilton Cup 2019-20"]
[Site "Stockholm"]
[Date "2019.12.31"]
[Round "5.22"]
[White "Percivaldi, Martin"]
[Black "Bruaset, Eivind"]
[Result "1/2-1/2"]
[ECO "E06"]
[WhiteElo "2386"]
[BlackElo "2217"]
[Annotator "ChessBase"]
[PlyCount "98"]
[EventDate "2019.12.27"]
[EventType "swiss"]
[EventCountry "SWE"]
[SourceTitle "playchess.com"]
[Source "ChessBase"]
[SourceQuality "1"]
[TimeControl "40/5400+30:1800+30"]

1. d4 {[%emt 0:00:00]} Nf6 {[%emt 0:00:00]} 2. c4 {[%emt 0:00:00]} e6 {[%emt 0:00:00]} 3. Nf3 {[%emt 0:00:09]} d5 {[%emt 0:00:00]} 4. g3 {[%emt 0:00:34]} Be7 {[%emt 0:00:31]} 5. Bg2 {[%emt 0:00:26]} O-O {[%emt 0:00:12]} 6. O-O {[%emt 0:00:11]} dxc4 {[%emt 0:00:25]} 7. Ne5 {[%emt 0:00:47]} Nc6 {[%emt 0:00:30]} 8. Nxc6 {[%emt 0:00:21]} bxc6 {[%emt 0:00:06]} 9. Na3 {[%emt 0:00:16]} Bxa3 {[%emt 0:00:23]} 10. bxa3 {[%emt 0:00:10]} Rb8 {[%emt 0:01:28]} 11. Qa4 {[%emt 0:02:24]} Rb6 {[%emt 0:03:27]} 12. Bd2 {[%emt 0:12:10]} Ba6 {[%emt 0:06:36]} 13. Bb4 {[%emt 0:08:57]} Bb5 {[%emt 0:02:31]} 14. Qc2 {[%emt 0:08:21]} Ra6 {[%emt 0:00:21]} 15. Bxf8 {[%emt 0:01:08]} Qxf8 {[%emt 0:00:36]} 16. e4 {[%emt 0:01:08]} Qxa3 {[%emt 0:02:38]} 17. Rfc1 {[%emt 0:04:11]} g6 {[%emt 0:06:55]} 18. Qd2 {[%emt 0:03:26]} Kg7 {[%emt 0:01:33]} 19. Rc3 {[%emt 0:04:05]} Qb4 {[%emt 0:02:03]} 20. a3 {[%emt 0:00:28]} Qe7 {[%emt 0:00:24]} 21. Bf3 {[%emt 0:14:48]} Nd7 {[%emt 0:03:13]} 22. a4 {[%emt 0:03:47]} Qb4 {[%emt 0:07:01]} 23. Bd1 {[%emt 0:11:50]} Nb6 {[%emt 0:01:38]} 24. Qc1 {[%emt 0:01:07]} Nxa4 {[%emt 0:03:17]} 25. Bxa4 {[%emt 0:04:29]} Rxa4 {[%emt 0:00:16]} 26. Rxa4 {[%emt 0:00:34]} Qxa4 {[%emt 0:00:42]} 27. h4 {[%emt 0:00:17]} Qb4 {[%emt 0:01:16]} 28. h5 {[%emt 0:02:09]} h6 {[%emt 0:00:18]} 29. hxg6 {[%emt 0:01:03]} fxg6 {[%emt 0:01:34]} 30. Rf3 {[%emt 0:01:30]} Qd6 {[%emt 0:01:21]} 31. Qc3 {[%emt 0:02:12]} a6 {[%emt 0:07:38]} 32. Rf6 {[%emt 0:01:06]} Qe7 {[%emt 0:05:37]} 33. Rf4 {[%emt 0:00:13]} c5 {[%emt 0:02:44]} 34. e5 {[%emt 0:03:24]} Qd7 {[%emt 0:01:45]} 35. d5 {[%emt 0:07:31]} Qxd5 {[%emt 0:00:26]} 36. Qf3 {[%emt 0:00:02]} Qxf3 {[%emt 0:05:11]} 37. Rxf3 {[%emt 0:00:01]} Ba4 {[%emt 0:00:13]} 38. Ra3 {[%emt 0:00:41]} Bb5 {[%emt 0:00:06]} 39. f4 {[%emt 0:00:46]} g5 {[%emt 0:00:19]} 40. fxg5 {[%emt 0:01:03]} h5 {[%emt 0:01:30]} 41. Kf2 {[%emt 0:31:00]} Kg6 {[%emt 0:30:10]} 42. Rf3 {[%emt 0:00:21]} Kxg5 {[%emt 0:01:20]} 43. Rf7 {[%emt 0:00:00]} Bc6 {[%emt 0:00:00]} 44. Ke3 {[%emt 0:00:00]} Bd5 {[%emt 0:00:00]} 45. Rxc7 {[%emt 0:00:00]} Kf5 {[%emt 0:00:00]} 46. Rh7 {[%emt 0:00:00]} Kxe5 {[%emt 0:00:00]} 47. Rxh5+ {[%emt 0:00:00]} Kf6 {[%emt 0:00:00]} 48. Kd2 {[%emt 0:00:00]} a5 {[%emt 0:00:00]} 49. Rh7 {[%emt 0:00:00]} Ke5 1/2-1/2

[Event "49th Rilton Cup 2019-20"]
[Site "Stockholm"]
[Date "2019.12.31"]
[Round "5.24"]
[White "Ippolito, Dean"]
[Black "Hauge, Lars Oskar"]
[Result "0-1"]
[ECO "A86"]
[WhiteElo "2356"]
[BlackElo "2504"]
[Annotator "RC"]
[PlyCount "68"]
[EventDate "2019.12.27"]
[EventType "swiss"]
[EventCountry "SWE"]
[SourceTitle "playchess.com"]
[Source "ChessBase"]
[SourceQuality "1"]
[TimeControl "40/5400+30:1800+30"]

1. d4 {[%emt 0:00:00]} f5 {[%emt 0:00:00]} 2. c4 {[%emt 0:00:00]} Nf6 {[%emt 0:00:00]} 3. g3 {[%emt 0:00:00]} d6 {[%emt 0:00:00]} 4. Nf3 {[%emt 0:00:12]} g6 {[%emt 0:00:00]} 5. Bg2 {[%emt 0:00:05]} Bg7 {[%emt 0:00:00]} 6. O-O {[%emt 0:00:22]} O-O {[%emt 0:00:03]} 7. Nc3 {[%emt 0:00:25]} e6 {[%emt 0:00:36]} 8. b3 {[%emt 0:04:41]} Qe7 {[%emt 0:05:50]} 9. Ba3 {[%emt 0:01:58]} Nc6 {[%emt 0:09:48]} 10. Qc2 {[%emt 0:06:55]} a5 {[%emt 0:06:22]} 11. Rad1 {[%emt 0:03:13]} Nb4 {[%emt 0:03:28]} 12. Qb1 {[%emt 0:02:49]} e5 {[%emt 0:00:57]} 13. dxe5 {[%emt 0:09:18]} dxe5 {[%emt 0:00:13]} 14. e4 {[%emt 0:03:51]} f4 {[%emt 0:02:23]} 15. h3 {[%emt 0:09:01]} g5 {[%emt 0:04:36]} 16. gxf4 {[%emt 0:12:01]} gxf4 {[%emt 0:10:13]} 17. Nd5 {[%emt 0:12:57]} Nfxd5 {[%emt 0:02:18]} 18. Rxd5 {[%emt 0:02:10]} Ra6 {[%emt 0:02:16]} 19. Kh2 {[%emt 0:03:36]} Rh6 {[%emt 0:09:46]} 20. Rxa5 {[%emt 0:00:05]} Bg4 {[%emt 0:03:38]} 21. Qd1 {[%emt 0:05:42]} Kh8 {[%emt 0:01:49]} 22. Rh1 {[%emt 0:09:09]} c5 {[%emt 0:00:34]} 23. Bxb4 {[%emt 0:03:47]} cxb4 {[%emt 0:00:06]} 24. Rd5 {[%emt 0:01:26]} Be6 {[%emt 0:00:57]} 25. Rd3 {[%emt 0:00:23]} Rg8 {[%emt 0:00:47]} 26. Rd6 {[%emt 0:03:56]} Bf6 {[%emt 0:01:40]} 27. Rg1 {[%emt 0:03:08]} Qf7 {[%emt 0:03:33]} 28. Ne1 {[%emt 0:01:54]} Be7 {[%emt 0:01:22]} 29. Rd3 {[%emt 0:00:34]} Bg4 {[%emt 0:00:39]} 30. Qa1 {[%emt 0:00:02]} f3 {[%emt 0:00:13]} 31. Qxe5+ {[%emt 0:00:52]} Bf6 {[%emt 0:00:06]} 32. Qd5 {[%emt 0:00:53]} Qc7+ {[%emt 0:02:22]} 33. Kh1 {[%emt 0:00:28]} Rg5 {[%emt 0:00:22]} 34. e5 Bxh3 {[%emt 0:00:34]} 0-1